bitfinex-derivatives/quotes_BTCF0:USTF0_20251023
["timestamp","ask_amount","ask_price","bid_price","bid_amount"]
[1761200181422,0.0048,109830.0,109810.0,0.04412]
[1761200181634,0.41361697,109870.0,109830.0,0.01392]
[1761200181920,0.04596,109850.0,109830.0,0.37434779]
[1761200182120,0.41316,109840.0,109830.0,0.37434779]
[1761200182512,1.42509746,109840.0,109830.0,0.01354779]
[1761200182722,0.16415,109820.0,109800.0,0.3608]
[1761200182915,0.04939,109830.0,109800.0,0.5340685]
[1761200182916,0.36708,109810.0,109800.0,0.5340685]
[1761200183111,0.41019,109830.0,109800.0,0.5340685]
[1761200183316,0.36692,109830.0,109820.0,0.88166]
[1761200183516,0.36692,109830.0,109820.0,0.8948685]
[1761200183808,0.57852,109830.0,109820.0,0.37393036]
[1761200184019,1.33932,109830.0,109820.0,0.01313036]
[1761200184215,1.33932,109830.0,109800.0,0.3608]
[1761200184416,0.14877,109810.0,109800.0,0.37407637]
[1761200184612,0.51617,109810.0,109800.0,0.37407637]
[1761200184816,0.51617,109810.0,109800.0,0.01327637]
[1761200185212,0.05281697,109870.0,109830.0,0.40953]
[1761200185519,0.0048,109870.0,109860.0,0.87572]
[1761200185714,0.40881697,109930.0,109860.0,1.07033]
[1761200185914,0.3548,109950.0,109920.0,0.7216]
[1761200186122,0.40225,109950.0,109940.0,0.7216]
[1761200186317,0.06263786,109950.0,109940.0,0.812538]
[1761200186518,0.17072,109970.0,109950.0,0.3608]
[1761200186715,0.04745,109980.0,109900.0,0.37892]
[1761200186716,0.04745,109980.0,109960.0,0.7216]
[1761200187014,0.04745,109980.0,109970.0,0.3608]
[1761200187217,0.43037,109980.0,109970.0,0.3608]
[1761200187418,0.45857033,109980.0,109970.0,0.3608]
[1761200187620,1.21937033,109980.0,109950.0,0.3608]
[1761200187926,1.21937033,109980.0,109940.0,0.3608]
[1761200187927,0.04745,109950.0,109940.0,0.3608]
[1761200188119,0.44845033,109950.0,109940.0,0.7216]
[1761200188319,0.06565033,109950.0,109940.0,0.7216]
[1761200188722,0.44801033,109950.0,109940.0,0.7216]
[1761200189219,0.84801033,109950.0,109940.0,0.7216]
[1761200189414,0.06565033,109950.0,109940.0,0.7216]
[1761200189620,0.44797033,109950.0,109940.0,0.7216]
[1761200190025,0.42977,109950.0,109940.0,0.7216]
[1761200190219,0.04745,109950.0,109940.0,0.7216]
[1761200190419,0.42925,109950.0,109940.0,0.7216]
[1761200190615,0.84737033,109950.0,109940.0,0.3608]
[1761200190822,0.85737033,109950.0,109940.0,0.3608]
[1761200191020,0.84737033,109950.0,109940.0,0.3608]
[1761200191625,0.44737033,109950.0,109940.0,0.3608]
[1761200191817,0.44737033,109950.0,109940.0,0.7216]
[1761200192026,0.44733033,109950.0,109940.0,0.7216]
[1761200192332,0.52103033,109950.0,109940.0,0.7216]
[1761200192517,0.52091033,109950.0,109940.0,0.7216]
[1761200193426,0.50247,109950.0,109940.0,1.1216]
[1761200193623,0.50247,109950.0,109940.0,0.7216]
[1761200193624,0.61442033,109950.0,109940.0,0.7216]
[1761200193818,0.21442033,109950.0,109940.0,0.7216]
[1761200194126,0.59530033,109950.0,109940.0,0.7216]
[1761200194720,0.59530033,109950.0,109940.0,0.3608]
[1761200196022,0.59530033,109950.0,109940.0,0.7216]
[1761200197727,0.59366033,109950.0,109940.0,0.7216]
[1761200197926,0.99366033,109950.0,109940.0,0.7216]
[1761200198325,1.36446033,109950.0,109930.0,0.3608]
[1761200198526,0.14877,109930.0,109920.0,0.3608]
[1761200198726,0.55577033,109930.0,109920.0,0.3608]
[1761200198926,0.95577033,109930.0,109920.0,0.3608]
[1761200199322,0.57697033,109930.0,109920.0,0.3608]
[1761200199522,0.95561033,109930.0,109920.0,0.3608]
[1761200199718,0.95545033,109930.0,109920.0,0.3608]
[1761200200627,0.95545033,109930.0,109910.0,0.3608]
[1761200200628,0.19622,109920.0,109910.0,0.3608]
[1761200200925,1.01522033,109920.0,109900.0,0.00454938]
[1761200201126,0.54477033,109910.0,109900.0,0.00454938]
[1761200201330,0.56477033,109910.0,109900.0,0.00454938]
[1761200201526,0.96477033,109910.0,109900.0,0.00454938]
[1761200201731,1.32557033,109910.0,109900.0,0.00454938]
[1761200202527,1.31357033,109910.0,109900.0,0.00454938]
[1761200204529,0.53577033,109910.0,109900.0,0.00454938]
[1761200204729,0.91217033,109910.0,109900.0,0.00454938]
[1761200206934,0.04745,109890.0,109860.0,0.36535104]
[1761200207130,0.14877,109870.0,109860.0,0.37922419]
[1761200207830,0.15497033,109870.0,109860.0,0.37922419]
[1761200208136,0.15507724,109870.0,109860.0,0.01842419]
[1761200208432,0.15507724,109870.0,109860.0,0.37922419]
[1761200208638,0.17507724,109870.0,109860.0,0.01842419]
[1761200209446,0.17507724,109870.0,109860.0,0.0319277]
[1761200209832,0.53577033,109870.0,109860.0,0.0319277]
[1761200210136,0.53577033,109870.0,109860.0,0.01842419]
[1761200210137,0.93577033,109870.0,109860.0,0.01842419]
[1761200210443,0.14877,109850.0,109840.0,0.3608]
[1761200210639,0.52929033,109850.0,109840.0,0.37443835]
[1761200210837,0.52939724,109850.0,109840.0,0.37443835]
[1761200211034,0.00010691,109850.0,109840.0,0.90835835]
[1761200211539,0.00010691,109850.0,109840.0,1.25051701]
[1761200212143,0.37376,109880.0,109870.0,0.1337]
[1761200212334,0.37376,109880.0,109870.0,0.86893835]
[1761200213937,0.37376,109880.0,109870.0,0.86846075]
[1761200214241,0.53047033,109880.0,109870.0,0.73476075]
[1761200215037,0.40562,109890.0,109870.0,0.73476075]
[1761200215038,0.04482,109890.0,109870.0,0.92401075]
[1761200215237,0.20153033,109890.0,109880.0,0.51085]
[1761200215443,0.92869,109890.0,109880.0,0.01316075]
[1761200215638,1.33489033,109890.0,109880.0,0.01316075]
[1761200215835,1.50709033,109890.0,109880.0,0.01316075]
[1761200217550,0.72561033,109890.0,109880.0,0.37396075]
[1761200217947,0.57341033,109890.0,109880.0,0.37396075]
[1761200218143,0.37808033,109890.0,109880.0,0.52401075]
[1761200218340,0.37780033,109890.0,109880.0,0.52401075]
[1761200218747,0.57313033,109890.0,109880.0,0.44800075]
[1761200218947,0.57313033,109890.0,109880.0,0.37396075]
[1761200219151,0.52831033,109890.0,109880.0,0.52401075]
[1761200219346,0.37780033,109890.0,109880.0,0.52401075]
[1761200219550,0.0048,109910.0,109880.0,1.17514821]
[1761200219849,0.37744033,109900.0,109890.0,0.51085]
[1761200220340,0.37124,109900.0,109890.0,0.51085]
[1761200220644,0.0048,109910.0,109900.0,0.2410215]
[1761200220850,0.41305,109950.0,109900.0,1.25295896]
[1761200221040,0.37708033,109940.0,109930.0,0.51085]
[1761200221436,0.05225,109950.0,109930.0,0.91085]
[1761200221648,0.0048,109950.0,109940.0,0.51085]
[1761200221949,0.3706,109960.0,109940.0,1.16198746]
[1761200222150,0.3706,109960.0,109950.0,0.51085]
[1761200222346,0.52731033,109960.0,109940.0,0.3608]
[1761200222544,0.45224033,109960.0,109950.0,0.43484]
[1761200222745,0.45224033,109960.0,109950.0,0.52442063]
[1761200222746,0.37680033,109960.0,109950.0,0.52442063]
[1761200223054,0.04745,109980.0,109950.0,0.52442063]
[1761200223250,0.52703033,109960.0,109950.0,0.37437063]
[1761200223551,0.88783033,109960.0,109950.0,0.01357063]
[1761200223743,0.15051,109940.0,109930.0,0.3608]
[1761200223942,0.52735033,109940.0,109930.0,0.3608]
[1761200224147,0.92735033,109940.0,109930.0,0.3608]
[1761200224344,0.92735033,109940.0,109920.0,0.3608]
[1761200224553,0.52115,109940.0,109930.0,0.3608]
[1761200224841,0.52115,109940.0,109920.0,0.3608]
[1761200224842,0.52695033,109940.0,109920.0,0.3608]
[1761200225042,0.52075,109940.0,109920.0,0.3608]
[1761200225350,0.00620033,109930.0,109920.0,0.3608]
[1761200225550,0.45188033,109930.0,109920.0,0.3608]
[1761200225742,0.08164033,109930.0,109920.0,0.43484]
[1761200225942,0.37644033,109930.0,109920.0,0.51085]
[1761200226148,0.37620033,109930.0,109920.0,0.51085]
[1761200226545,0.36984,109930.0,109920.0,0.91085]
[1761200226751,0.04482,109950.0,109920.0,0.91085]
[1761200227051,0.44528,109940.0,109930.0,0.3608]
[1761200227243,0.15051,109940.0,109930.0,0.3608]
[1761200227441,0.52643033,109940.0,109930.0,0.3608]
[1761200228343,0.15671033,109940.0,109930.0,0.3608]
[1761200228544,0.52619033,109940.0,109930.0,0.3608]
[1761200228745,0.92619033,109940.0,109920.0,0.3608]
[1761200228950,0.15671033,109930.0,109920.0,0.3608]
[1761200229940,0.36948,109940.0,109920.0,0.51085]
[1761200230141,0.36948,109940.0,109930.0,0.51085]
[1761200230347,0.44492,109940.0,109930.0,0.51085]
[1761200230552,0.36936,109940.0,109930.0,0.51085]
[1761200230851,0.45100033,109940.0,109930.0,0.51085]
[1761200231152,0.92607033,109940.0,109930.0,0.3608]
[1761200231651,0.85100033,109940.0,109930.0,0.3608]
[1761200231856,0.92607033,109940.0,109930.0,0.3608]
[1761200232045,0.94607033,109940.0,109930.0,0.3608]
[1761200232350,1.30687033,109940.0,109920.0,0.3608]
[1761200232550,0.15671033,109930.0,109920.0,0.3608]
[1761200233346,0.3608,109940.0,109920.0,0.95611]
[1761200233650,0.36984,109970.0,109960.0,0.15005]
[1761200233947,0.0048,109990.0,109960.0,0.9625719]
[1761200234257,0.0048,109990.0,109980.0,1.0078154]
[1761200234558,0.32008,109990.0,109980.0,1.0078154]
[1761200234744,0.37576,109990.0,109980.0,0.91691]
[1761200235255,0.0048,109990.0,109980.0,1.0078153]
[1761200235749,0.0048,109990.0,109980.0,1.42112334]
[1761200235954,0.0048,110030.0,109980.0,1.42112334]
[1761200236146,0.3848,110030.0,110020.0,0.51085]
[1761200236349,0.7556,110030.0,110020.0,0.88495804]
[1761200236549,0.7556,110030.0,110020.0,0.52415804]
[1761200236858,0.8956,110030.0,110020.0,0.52415804]
[1761200237552,1.04611,110030.0,110020.0,0.37410804]
[1761200238454,0.97104,110030.0,110020.0,0.44814804]
[1761200239054,1.04611,110030.0,110020.0,0.37410804]
[1761200239254,0.04482,110010.0,110000.0,0.3608]
[1761200239553,0.30271,109970.0,109960.0,0.36090285]
[1761200239864,0.17051,109970.0,109960.0,0.36090285]
[1761200240156,0.36988,109980.0,109960.0,0.51095285]
[1761200240363,0.15051,109970.0,109960.0,0.36090285]
[1761200240852,0.4147,109980.0,109960.0,0.36090285]
[1761200241058,0.41988,109980.0,109970.0,0.51085]
[1761200241458,0.49532,109980.0,109970.0,0.3608]
[1761200241671,0.97039,109980.0,109970.0,0.3608]
[1761200241967,0.05,109980.0,109970.0,0.51085]
[1761200242258,0.36976,109990.0,109970.0,0.51085]
[1761200242453,0.09624,109980.0,109970.0,0.3608]
[1761200242660,0.19415,109980.0,109970.0,0.3608]
[1761200243362,0.36976,109990.0,109970.0,0.3608]
[1761200243557,0.37976,109990.0,109970.0,0.3608]
[1761200244060,0.36976,109990.0,109980.0,0.3608]
[1761200244263,0.36976,109990.0,109980.0,0.44795]
[1761200244453,0.36896,110010.0,109980.0,0.98478]
[1761200244653,0.42896,110010.0,110000.0,0.3608]
[1761200245054,0.42896,110010.0,110000.0,0.53952]
[1761200246063,0.06,110010.0,110000.0,0.53952]
[1761200246255,0.42884,110010.0,110000.0,0.53952]
[1761200246553,0.36884,110010.0,110000.0,0.93952]
[1761200246753,0.36864,110020.0,110000.0,0.93952]
[1761200246954,0.54868,110020.0,110010.0,0.53952]
[1761200247464,0.37348,110030.0,110010.0,0.93952]
[1761200247660,0.96137,110030.0,110020.0,0.3608]
[1761200248466,1.36137,110030.0,110010.0,0.3608]
[1761200248661,0.72269,110030.0,110010.0,0.3608]
[1761200248868,1.09077,110030.0,110020.0,0.3608]
[1761200249372,1.45157,110030.0,110010.0,0.3608]
[1761200249754,1.09077,110030.0,110010.0,0.3608]
[1761200250265,1.09077,110030.0,110000.0,0.3608]
[1761200250266,1.85157,110030.0,110000.0,0.3608]
[1761200250459,0.23147,110010.0,110000.0,0.3608]
[1761200250764,0.59943,110010.0,110000.0,0.3608]
[1761200251166,1.01943,110010.0,109990.0,0.3608]
[1761200251359,1.38023,110010.0,109980.0,0.3608]
[1761200251560,0.23147,109980.0,109970.0,0.3608]
[1761200251763,0.54557,109980.0,109970.0,0.3608]
[1761200252168,0.59915,109980.0,109970.0,0.3608]
[1761200253054,0.54557,109980.0,109970.0,0.44795]
[1761200253259,0.54557,109980.0,109970.0,0.53952]
[1761200253260,0.36768,109980.0,109970.0,0.53952]
[1761200253455,0.36768,109980.0,109970.0,0.93952]
[1761200253867,0.05358,110010.0,109970.0,1.0304297]
[1761200254063,0.05358,110010.0,110000.0,0.3608]
[1761200254064,0.48147,110010.0,110000.0,0.3608]
[1761200254265,0.84879,110010.0,110000.0,0.3608]
[1761200254460,0.84879,110010.0,110000.0,0.44795]
[1761200254461,0.79521,110010.0,110000.0,0.44795]
[1761200254772,0.41728,110010.0,110000.0,0.53952]
[1761200254972,0.41728,110010.0,110000.0,0.93952]
[1761200255366,0.41728,110010.0,110000.0,1.0304088]
[1761200255558,0.36728,110010.0,110000.0,0.93952]
[1761200256068,0.36728,110010.0,110000.0,1.0304088]
[1761200256372,0.36728,110010.0,110000.0,0.93952]
[1761200257063,0.99875,110010.0,110000.0,0.3608]
[1761200257265,1.01875,110010.0,109990.0,0.3608]
[1761200257467,1.01875,110010.0,110000.0,0.3608]
[1761200257668,0.59875,110010.0,110000.0,0.3608]
[1761200257969,0.36728,110010.0,110000.0,0.53952]
[1761200258170,0.0048,110030.0,110000.0,0.53952]
[1761200258372,0.36676,110020.0,110010.0,0.3608]
[1761200258572,0.45375,110020.0,110010.0,0.3608]
[1761200258865,0.54465,110020.0,110010.0,0.3608]
[1761200259672,0.45375,110020.0,110010.0,0.44795]
[1761200259867,0.36608,110020.0,110010.0,0.44795]
[1761200260570,0.36608,110020.0,110010.0,0.53952]
[1761200260767,0.0048,110030.0,110010.0,0.98478]
[1761200260969,0.0048,110030.0,110020.0,1.0303923]
[1761200261169,0.0048,110030.0,110020.0,1.05349663]
[1761200261373,0.0048,110030.0,110020.0,0.53952]
[1761200261567,0.0048,110030.0,110020.0,0.6303923]
[1761200261765,0.14057,110010.0,110000.0,0.3608]
[1761200261971,0.59771,110010.0,110000.0,0.3608]
[1761200262164,0.45323,110010.0,110000.0,0.44795]
[1761200262369,0.3752,110030.0,110000.0,0.93952]
[1761200262576,0.3752,110030.0,110020.0,0.7216]
[1761200262770,0.3752,110030.0,110020.0,0.90032]
[1761200262973,0.0048,110030.0,110020.0,1.30032]
[1761200263169,0.0048,110030.0,110020.0,0.90032]
[1761200263672,0.0048,110030.0,110020.0,1.3911923]
[1761200264077,0.0048,110030.0,110020.0,1.30032]
[1761200264376,0.0048,110030.0,110020.0,1.78512273]
[1761200264575,0.0048,110030.0,110020.0,1.3911923]
[1761200264776,0.0048,110030.0,110020.0,1.60168377]
[1761200265170,0.04962,110070.0,110030.0,0.0908602]
[1761200265374,0.94014,110070.0,110060.0,0.3608]
[1761200265575,1.02713,110070.0,110060.0,0.3608]
[1761200266483,1.42713,110070.0,110060.0,0.3608]
[1761200267480,0.75627,110070.0,110060.0,0.3608]
[1761200268179,0.5248,110070.0,110060.0,0.93952]
[1761200268481,0.0048,110070.0,110060.0,1.0303592]
[1761200268672,0.0048,110070.0,110060.0,0.93952]
[1761200268869,0.0048,110070.0,110060.0,1.0303592]
[1761200269274,0.0048,110070.0,110060.0,1.30856]
[1761200269575,0.0048,110070.0,110060.0,0.93952]
[1761200269778,0.0048,110070.0,110060.0,1.0303593]
[1761200269973,0.0048,110070.0,110060.0,0.93952]
[1761200272085,0.0048,110070.0,110060.0,0.53952]
[1761200273183,0.0048,110070.0,110060.0,1.0303593]
[1761200273976,0.0048,110070.0,110060.0,0.53952]
[1761200274683,0.0048,110070.0,110060.0,0.93952]
[1761200274886,0.0048,110070.0,110060.0,0.53952]
[1761200275482,0.63815,110070.0,110060.0,0.3608]
[1761200276074,0.0048,110070.0,110060.0,0.53623]
[1761200276987,0.18385,110070.0,110060.0,0.53623]
[1761200278290,0.0048,110070.0,110060.0,0.53623]
[1761200278590,0.372,110070.0,110060.0,0.53623]
[1761200278777,0.0543,110040.0,110000.0,0.3608]
[1761200278985,0.53985,110010.0,110000.0,0.05832]
[1761200279181,0.3608,110030.0,110000.0,0.46052027]
[1761200279485,0.07123364,110050.0,110020.0,0.80824367]
[1761200279683,0.07123364,110050.0,110040.0,0.35657147]
[1761200279886,0.3608,110060.0,110040.0,0.84742677]
[1761200280176,0.3608,110060.0,110050.0,0.11664]
[1761200280583,0.3608,110060.0,110050.0,0.9801275]
[1761200281488,0.3608,110060.0,110050.0,0.48928]
[1761200281683,0.3608,110060.0,110050.0,0.51664]
[1761200281882,0.3608,110060.0,110050.0,0.88892]
[1761200282077,0.3608,110060.0,110050.0,0.6074875]
[1761200282287,0.3608,110060.0,110050.0,0.9796875]
[1761200282482,0.0048,110070.0,110060.0,0.0908393]
[1761200282686,0.04553,110080.0,110070.0,0.131291]
[1761200282887,0.04553,110080.0,110070.0,1.61130247]
[1761200283385,0.04553,110080.0,110070.0,1.48001147]
[1761200283592,0.04553,110080.0,110070.0,1.371131]
[1761200283780,0.3656,110110.0,110090.0,0.10704]
[1761200283982,0.3608,110100.0,110090.0,0.10704]
[1761200284188,0.0048,110110.0,110090.0,0.4788]
[1761200284381,0.1648,110110.0,110090.0,0.9304116]
[1761200284583,0.1648,110110.0,110100.0,0.3608]
[1761200284885,0.1648,110110.0,110100.0,1.10159067]
[1761200284886,0.0048,110110.0,110100.0,1.10159067]
[1761200285082,0.40951043,110140.0,110130.0,0.09744]
[1761200285279,0.3608,110140.0,110130.0,0.61194437]
[1761200285480,0.41431043,110150.0,110130.0,0.869]
[1761200285690,0.05351043,110150.0,110140.0,0.45824]
[1761200285884,0.05351043,110150.0,110140.0,0.24038437]
[1761200286085,0.05351043,110150.0,110140.0,0.09744]
[1761200286086,0.0048,110150.0,110140.0,0.09744]
[1761200286288,0.50499043,110150.0,110140.0,0.09744]
[1761200286492,0.0048,110150.0,110140.0,0.09744]
[1761200286716,0.7656,110150.0,110140.0,0.09744]
[1761200286993,0.4048,110150.0,110140.0,0.09744]
[1761200287183,0.54465,110150.0,110130.0,0.3718]
[1761200287382,0.54465,110150.0,110080.0,0.52752676]
[1761200287383,0.17905,110120.0,110080.0,0.52752676]
[1761200287589,0.53985,110120.0,110090.0,0.87610437]
[1761200287792,0.53985,110120.0,110090.0,0.37236]
[1761200287982,0.4151,110130.0,110100.0,0.40952]
[1761200288187,0.45148,110110.0,110100.0,0.04872]
[1761200288389,0.3608,110120.0,110100.0,0.24038437]
[1761200288591,0.4151,110130.0,110100.0,0.45824]
[1761200288905,0.53985,110120.0,110110.0,0.37212]
[1761200289196,0.3608,110120.0,110110.0,0.46956]
[1761200289689,0.4151,110130.0,110110.0,0.83036]
[1761200290298,0.3608,110130.0,110110.0,0.97330437]
[1761200290998,0.17905,110120.0,110110.0,0.46888]
[1761200291200,0.17905,110120.0,110110.0,0.42016]
[1761200291494,0.4101,110130.0,110110.0,0.61182437]
[1761200291700,0.4151,110130.0,110110.0,0.82968]
[1761200291997,0.0543,110130.0,110110.0,0.82968]
[1761200292293,0.3656,110150.0,110130.0,0.09744]
[1761200292497,0.3656,110150.0,110140.0,0.14294437]
[1761200292692,0.3656,110150.0,110140.0,0.24038437]
[1761200293000,0.0048,110150.0,110140.0,1.04990437]
[1761200293299,0.0048,110150.0,110140.0,0.45824]
[1761200293502,0.0543,110140.0,110100.0,0.57624676]
[1761200293803,0.0543,110140.0,110120.0,0.09744]
[1761200293804,0.4151,110140.0,110120.0,0.09744]
[1761200294289,0.3608,110130.0,110120.0,0.09744]
[1761200294486,0.4151,110140.0,110120.0,0.09744]
[1761200294887,0.53985,110130.0,110120.0,0.41964]
[1761200295093,0.17905,110130.0,110120.0,0.41964]
[1761200295294,0.4151,110140.0,110120.0,0.46836]
[1761200295903,0.73692,110150.0,110120.0,0.82916]
[1761200296103,0.3608,110140.0,110120.0,0.82916]
[1761200296398,0.45148,110130.0,110120.0,0.46836]
[1761200296598,0.53985,110130.0,110120.0,0.41888]
[1761200297300,0.53985,110130.0,110120.0,0.4676]
[1761200297503,0.0543,110120.0,110080.0,0.3608]
[1761200297806,0.53985,110090.0,110080.0,0.01311985]
[1761200298105,0.53985,110090.0,110080.0,0.38279985]
[1761200298293,1.08279437,110090.0,110080.0,0.01311985]
[1761200298702,0.53985,110090.0,110080.0,0.01311985]
[1761200298904,0.3608,110090.0,110080.0,0.11055985]
[1761200299111,0.0543,110100.0,110080.0,0.61430422]
[1761200299307,0.4151,110120.0,110090.0,0.87398437]
[1761200299606,0.68279437,110100.0,110080.0,0.3608]
[1761200299908,0.53985,110090.0,110080.0,0.38359346]
[1761200300296,0.3608,110100.0,110080.0,0.84183346]
[1761200300497,0.45148,110090.0,110080.0,0.11055346]
[1761200300711,0.53985,110090.0,110080.0,0.38355346]
[1761200301509,0.53985,110090.0,110080.0,0.01311346]
[1761200301719,1.08279437,110090.0,110080.0,0.01311346]
[1761200302303,0.23335,110070.0,110060.0,0.00522277]
[1761200302501,0.73709437,110070.0,110060.0,0.00522277]
[1761200302806,0.59415,110070.0,110060.0,0.00522277]
[1761200303007,0.73709437,110070.0,110060.0,0.00522277]
[1761200303198,0.73709437,110070.0,110060.0,0.37518277]
[1761200303397,0.59415,110070.0,110060.0,0.37518277]
[1761200303711,0.3608,110110.0,110080.0,0.221838]
[1761200303912,0.4208,110110.0,110090.0,0.51266437]
[1761200304107,0.4208,110110.0,110090.0,0.36972]
[1761200304508,0.3608,110110.0,110090.0,0.36972]
[1761200304706,1.43544437,110100.0,110060.0,0.36602277]
[1761200305000,0.3608,110090.0,110070.0,0.50374437]
[1761200305203,0.40951043,110110.0,110080.0,0.85998]
[1761200305402,0.16,110110.0,110090.0,0.50374437]
[1761200305602,0.16,110110.0,110100.0,0.37064]
[1761200305809,0.24489,110110.0,110100.0,0.37064]
[1761200306113,0.16326,110110.0,110100.0,0.37064]
[1761200306419,0.52406,110110.0,110100.0,0.37064]
[1761200306711,1.06700437,110110.0,110090.0,0.3608]
[1761200307009,0.3608,110100.0,110070.0,0.50374437]
[1761200307210,0.16326,110090.0,110070.0,0.3608]
[1761200307410,0.16326,110090.0,110080.0,0.37124]
[1761200308509,0.52406,110090.0,110080.0,0.37124]
[1761200309011,0.92406,110090.0,110080.0,0.37124]
[1761200309414,1.06700437,110090.0,110080.0,0.37124]
[1761200309603,1.06700437,110090.0,110060.0,0.36602277]
[1761200309809,0.13335,110070.0,110060.0,0.36602277]
[1761200310113,0.21172,110070.0,110060.0,0.73614277]
[1761200310507,0.21172,110070.0,110060.0,0.86460277]
[1761200310903,0.21172,110070.0,110040.0,9.791e-05]
[1761200310904,0.04846,110060.0,110040.0,9.791e-05]
[1761200311110,0.66700437,110050.0,110040.0,9.791e-05]
[1761200311310,0.16326,110030.0,110020.0,0.00454442]
[1761200311512,0.16326,110030.0,110020.0,0.37490442]
[1761200311720,0.04846,110040.0,110020.0,1.02950874]
[1761200312018,0.55220437,110060.0,110030.0,0.3608]
[1761200312214,0.16326,110050.0,110040.0,0.37024]
[1761200312420,0.16334212,110050.0,110040.0,0.37024]
[1761200312617,0.87628649,110050.0,110020.0,0.36534442]
[1761200312819,0.08489,110030.0,110020.0,0.86432442]
[1761200313118,9.791e-05,110030.0,110020.0,1.09813919]
[1761200313424,0.16335791,110030.0,110020.0,1.13582442]
[1761200314220,0.30630228,110030.0,110020.0,0.36534442]
[1761200314421,0.70630228,110030.0,110020.0,0.01766485]
[1761200314616,0.21172,110010.0,109980.0,0.38920005]
[1761200314919,0.16332735,110000.0,109990.0,0.73124]
[1761200315120,0.30627172,110000.0,109990.0,0.37044]
[1761200315320,0.30627172,110000.0,109990.0,0.3708]
[1761200315516,0.30627172,110000.0,109980.0,0.36541766]
[1761200315716,0.30627172,110000.0,109990.0,0.37084]
[1761200315922,0.16332735,110000.0,109990.0,0.37056]
[1761200316113,6.735e-05,110000.0,109990.0,1.49366057]
[1761200316418,0.3608,110050.0,110010.0,0.0908719]
[1761200316625,0.50374437,110050.0,110020.0,0.73176]
[1761200316825,0.3608,110050.0,110020.0,0.73176]
[1761200317020,0.55220437,110060.0,110030.0,0.3608]
[1761200317226,0.16326,110050.0,110040.0,0.37088]
[1761200317522,0.30620437,110050.0,110040.0,0.37088]
[1761200317717,0.16326,110050.0,110040.0,0.37088]
[1761200318625,0.04846,110060.0,110040.0,1.3509941]
[1761200318827,0.05326,110070.0,110050.0,0.48926]
[1761200319028,0.35946437,110070.0,110060.0,0.37012]
[1761200319323,0.72026437,110070.0,110060.0,0.37012]
[1761200319913,0.57732,110070.0,110060.0,0.37012]
[1761200320113,0.57732,110070.0,110050.0,0.3608]
[1761200320322,0.21172,110040.0,110030.0,0.3608]
[1761200320820,0.21172,110040.0,110030.0,0.73064]
[1761200321024,0.3608,110060.0,110030.0,1.2591]
[1761200321025,0.50374437,110060.0,110030.0,1.2591]
[1761200321222,0.16326,110060.0,110050.0,0.3608]
[1761200321723,0.16326,110060.0,110050.0,0.73048]
[1761200322126,0.16326,110060.0,110050.0,0.3608]
[1761200322427,0.16326,110060.0,110050.0,0.7304]
[1761200322631,0.30620437,110060.0,110050.0,0.7304]
[1761200322820,0.30620437,110060.0,110050.0,0.3608]
[1761200323126,0.30620437,110060.0,110050.0,0.7304]
[1761200323827,1.06700437,110060.0,110050.0,0.36904]
[1761200324526,0.21172,110040.0,110030.0,0.3608]
[1761200324730,0.21172,110040.0,110030.0,0.72952]
[1761200325119,0.21172,110040.0,110030.0,0.3608]
[1761200325319,0.21172,110040.0,110030.0,0.72932]
[1761200325525,0.35466437,110040.0,110030.0,0.3684]
[1761200325723,0.71546437,110040.0,110030.0,0.3684]
[1761200325925,1.11546437,110040.0,110010.0,0.3608]
[1761200326127,0.16326,110020.0,110010.0,0.3608]
[1761200326320,0.16326,110020.0,110010.0,0.72908]
[1761200326514,0.16326,110020.0,110010.0,0.729]
[1761200326729,1.44780437,110020.0,110010.0,0.01314475]
[1761200327221,1.42780437,110020.0,110010.0,0.01314475]
[1761200327417,1.45780437,110020.0,109980.0,0.36541766]
[1761200327620,1.45780437,110020.0,109980.0,0.0404908]
[1761200327621,0.30620437,109990.0,109980.0,0.0404908]
[1761200327921,0.66700437,109990.0,109980.0,0.0180576]
[1761200328125,1.06700437,109990.0,109980.0,0.0180576]
[1761200328424,0.04846,110010.0,109980.0,1.55806695]
[1761200328619,0.04846,110010.0,109990.0,0.3608]
[1761200328620,0.16326,110000.0,109990.0,0.3608]
[1761200328824,0.16326,110000.0,109980.0,0.36541766]
[1761200329125,0.16326,110000.0,109990.0,0.36848]
[1761200329126,0.30620437,110000.0,109990.0,0.36848]
[1761200329525,0.52406,110000.0,109990.0,0.36848]
[1761200329922,0.66700437,110000.0,109980.0,0.36541766]
[1761200330121,0.66700437,110000.0,109990.0,0.368]
[1761200330714,0.66700437,110000.0,109980.0,0.00461766]
[1761200330916,0.66700437,109990.0,109980.0,0.37249766]
[1761200331421,0.66700437,109990.0,109980.0,0.00461766]
[1761200331626,1.06700437,109990.0,109980.0,0.00461766]
[1761200331821,1.06700437,109990.0,109980.0,0.37233766]
[1761200332731,0.52406,109990.0,109980.0,0.37233766]
[1761200333826,1.06700437,109990.0,109980.0,0.00461766]
[1761200334026,0.52406,109990.0,109980.0,0.00461766]
[1761200334226,0.3608,109990.0,109980.0,0.13740766]
[1761200334422,0.40926,110010.0,109980.0,1.13205643]
[1761200334628,0.40926,110010.0,109990.0,0.36672]
[1761200334928,0.40926,110010.0,109990.0,0.8184155]
[1761200335434,0.40926,110010.0,110000.0,0.11084]
[1761200335628,0.3608,110020.0,110000.0,0.11084]
[1761200335834,0.52769,110020.0,110010.0,0.36648]
[1761200336931,0.16689,110020.0,110010.0,0.36648]
[1761200337736,0.50374437,110030.0,110010.0,0.36648]
[1761200337737,0.3608,110030.0,110010.0,0.87732]
[1761200337926,0.3608,110030.0,110010.0,0.5681995]
[1761200338126,0.40926,110040.0,110020.0,0.50374437]
[1761200338428,0.40926,110040.0,110030.0,0.4766]
[1761200338429,0.49337,110040.0,110030.0,0.4766]
[1761200338630,0.13257,110040.0,110030.0,0.4766]
[1761200339237,0.04846,110040.0,110030.0,0.4766]
[1761200339729,0.04846,110040.0,110030.0,0.5674631]
[1761200339922,0.21535,110040.0,110020.0,0.3608]